bitfinex-derivatives/quotes_BTCF0:USTF0_20250918
["timestamp","ask_amount","ask_price","bid_price","bid_amount"]
[1758155076129,0.80507554,116190.0,116180.0,0.39632]
[1758155076329,0.73464,116190.0,116180.0,0.64632]
[1758155076525,0.0001,116200.0,116190.0,0.01286]
[1758155076726,0.0001,116210.0,116200.0,0.03552]
[1758155076931,0.7438,116210.0,116200.0,0.39632]
[1758155077135,1.05541582,116210.0,116200.0,0.39632]
[1758155077333,0.28986582,116210.0,116200.0,0.93618582]
[1758155077534,1.08586582,116210.0,116200.0,0.93618582]
[1758155077738,0.796,116210.0,116200.0,1.22605164]
[1758155078039,0.798,116210.0,116200.0,1.22605164]
[1758155078236,0.002,116210.0,116200.0,1.22605164]
[1758155078533,0.002,116210.0,116200.0,2.01193796]
[1758155079133,0.002,116210.0,116200.0,1.97193796]
[1758155079330,0.002,116210.0,116200.0,1.72193796]
[1758155080040,0.0001,116220.0,116210.0,0.03552]
[1758155080340,0.8877135,116230.0,116220.0,0.03552]
[1758155080540,0.8876135,116230.0,116220.0,0.39632]
[1758155080736,0.8876135,116230.0,116220.0,0.97605164]
[1758155081136,0.8658635,116230.0,116220.0,0.97605164]
[1758155081740,0.8668635,116230.0,116220.0,0.97605164]
[1758155082837,0.001,116230.0,116220.0,1.22605164]
[1758155083042,0.79644,116230.0,116220.0,1.22605164]
[1758155083240,0.79544,116230.0,116220.0,1.22605164]
[1758155085038,0.79544,116230.0,116220.0,1.06205734]
[1758155085843,0.79544,116230.0,116220.0,1.06281196]
[1758155086139,0.79544,116230.0,116220.0,0.4823257]
[1758155086344,0.79544,116230.0,116220.0,1.06281196]
[1758155088046,0.79544,116230.0,116220.0,0.97680626]
[1758155088237,0.79544,116230.0,116220.0,0.97690626]
[1758155088638,0.79544,116230.0,116220.0,0.68666313]
[1758155089843,0.79544,116230.0,116220.0,0.77266883]
[1758155090339,0.79544,116230.0,116220.0,1.06291196]
[1758155092543,0.79544,116230.0,116220.0,1.31291196]
[1758155092839,0.0002,116240.0,116230.0,0.1215183]
[1758155093046,0.75818209,116250.0,116240.0,0.03552]
[1758155093346,0.75798209,116250.0,116240.0,0.68666313]
[1758155093646,0.73824,116250.0,116240.0,0.68666313]
[1758155094041,0.75999,116250.0,116240.0,0.39642]
[1758155094346,0.75999,116250.0,116240.0,0.68666313]
[1758155095839,0.75999,116250.0,116240.0,0.39642]
[1758155096044,0.75999,116250.0,116240.0,0.68666313]
[1758155096747,0.76199,116250.0,116240.0,0.68666313]
[1758155097148,0.75999,116250.0,116240.0,0.68666313]
[1758155097351,0.76099,116250.0,116240.0,0.68666313]
[1758155097550,0.82831445,116250.0,116240.0,0.68666313]
[1758155101545,0.80656445,116250.0,116240.0,0.68666313]
[1758155101753,0.80656445,116250.0,116240.0,0.77265403]
[1758155102251,0.001,116250.0,116240.0,1.31289716]
[1758155102447,0.001,116250.0,116240.0,1.71289716]
[1758155102644,0.001,116250.0,116240.0,1.02265403]
[1758155102839,0.001,116250.0,116240.0,1.31289716]
[1758155103046,0.001,116250.0,116240.0,1.02265403]
[1758155103253,0.81447,116250.0,116240.0,0.39642]
[1758155103846,0.81447,116250.0,116240.0,0.68666313]
[1758155106053,0.88434643,116250.0,116240.0,0.39642]
[1758155106256,0.88434643,116250.0,116240.0,0.68666313]
[1758155106854,0.88434643,116250.0,116240.0,0.39642]
[1758155107047,1.79454956,116250.0,116240.0,0.0001]
[1758155107253,1.81629853,116250.0,116240.0,0.0001]
[1758155108146,2.10654166,116250.0,116240.0,0.0001]
[1758155108347,2.10654166,116250.0,116220.0,0.03001809]
[1758155108549,0.67215313,116230.0,116220.0,0.05305809]
[1758155108850,0.3608,116230.0,116220.0,0.05305809]
[1758155109050,0.79186,116240.0,116230.0,0.1216383]
[1758155109352,0.07097643,116250.0,116240.0,0.0985909]
[1758155109548,0.07097643,116250.0,116240.0,0.77267403]
[1758155109549,0.07087643,116250.0,116240.0,0.77267403]
[1758155109745,0.001,116250.0,116240.0,1.31291716]
[1758155109955,0.001,116250.0,116240.0,1.71291716]
[1758155110147,0.001,116250.0,116240.0,2.50479716]
[1758155110754,0.001,116250.0,116240.0,2.10479716]
[1758155110955,0.79188,116260.0,116250.0,0.1216235]
[1758155111158,0.79188,116260.0,116250.0,1.06290976]
[1758155111859,0.79188,116260.0,116250.0,0.84258709]
[1758155114058,0.08847503,116270.0,116260.0,0.1216161]
[1758155114261,0.10958503,116270.0,116260.0,0.48177969]
[1758155115053,0.08847503,116270.0,116260.0,0.84257969]
[1758155117762,0.01986914,116270.0,116260.0,1.63389969]
[1758155118163,0.01986914,116270.0,116260.0,1.88389969]
[1758155126552,0.06854497,116280.0,116260.0,1.09257969]
[1758155126760,0.02111,116270.0,116260.0,1.18676]
[1758155127062,0.02111,116270.0,116260.0,1.18668]
[1758155127261,0.02111,116270.0,116260.0,0.39654]
[1758155127459,0.02111,116270.0,116260.0,1.18678]
[1758155130066,0.02111,116270.0,116260.0,1.1865]
[1758155131370,0.02111,116270.0,116260.0,0.39654]
[1758155131666,0.02111,116270.0,116260.0,1.18626]
[1758155131864,0.02111,116270.0,116260.0,1.47636225]
[1758155132062,0.92201225,116270.0,116260.0,0.03574]
[1758155135064,0.93117225,116270.0,116260.0,0.0001]
[1758155138372,0.93617225,116270.0,116260.0,0.0001]
[1758155138667,0.64607,116270.0,116260.0,0.0001]
[1758155138867,0.93617225,116270.0,116260.0,0.0001]
[1758155139266,0.68617225,116270.0,116260.0,0.0001]
[1758155141876,0.70778862,116270.0,116260.0,0.0001]
[1758155142278,0.95778862,116270.0,116260.0,0.0001]
[1758155143176,0.93617225,116270.0,116260.0,0.0001]
[1758155146577,0.93617225,116270.0,116230.0,0.02994603]
[1758155146782,0.67299225,116240.0,116230.0,0.05211603]
[1758155146984,1.46139225,116240.0,116230.0,0.05211603]
[1758155147284,1.17129,116240.0,116230.0,0.05211603]
[1758155147485,1.17129,116240.0,116230.0,0.03477]
[1758155147788,1.46159038,116240.0,116230.0,0.32507038]
[1758155147986,1.47104931,116240.0,116230.0,0.32507038]
[1758155150491,1.54018199,116240.0,116230.0,0.32507038]
[1758155154600,1.54018199,116240.0,116230.0,0.03477]
[1758155154795,1.54018199,116240.0,116230.0,0.32507038]
[1758155156301,1.24988161,116240.0,116230.0,0.03477]
[1758155156498,1.17938199,116240.0,116230.0,0.32507038]
[1758155158302,0.88908161,116240.0,116230.0,0.32507038]
[1758155158701,1.17938199,116240.0,116230.0,0.32507038]
[1758155159793,0.39098199,116240.0,116230.0,0.32507038]
[1758155159994,1.17874199,116240.0,116230.0,0.32507038]
[1758155160602,0.88844161,116240.0,116230.0,0.32507038]
[1758155160991,1.17874199,116240.0,116230.0,0.03477]
[1758155161202,1.17874199,116240.0,116230.0,0.32507038]
[1758155163703,0.88844161,116240.0,116230.0,0.32507038]
[1758155163895,1.17874199,116240.0,116230.0,0.32507038]
[1758155166206,1.17874199,116240.0,116230.0,0.03477]
[1758155166403,0.88844161,116240.0,116230.0,0.32517038]
[1758155166706,1.17874199,116240.0,116230.0,0.32517038]
[1758155167408,0.88844161,116240.0,116230.0,0.32517038]
[1758155167708,1.53954199,116240.0,116230.0,0.32517038]
[1758155168508,1.82984237,116240.0,116230.0,0.32517038]
[1758155170214,1.53954199,116240.0,116230.0,0.32517038]
[1758155170813,1.53954199,116240.0,116230.0,0.03487]
[1758155171015,1.53954199,116240.0,116230.0,0.32517038]
[1758155174013,1.82984237,116240.0,116230.0,0.03487]
[1758155174216,1.82984237,116240.0,116230.0,0.32517038]
[1758155174616,1.82984237,116240.0,116230.0,0.03487]
[1758155175114,2.40097468,116240.0,116230.0,0.0001]
[1758155175715,2.52807041,116240.0,116230.0,0.0001]
[1758155175915,0.00916,116230.0,116200.0,0.30381038]
[1758155176218,0.31327038,116210.0,116200.0,0.03663]
[1758155176421,0.31327038,116210.0,116200.0,0.32693038]
[1758155177822,0.31427038,116210.0,116200.0,0.32693038]
[1758155179322,0.31427038,116210.0,116200.0,0.03663]
[1758155179618,0.67507038,116210.0,116200.0,0.03663]
[1758155180519,0.92507038,116210.0,116200.0,0.02312]
[1758155181920,0.92407038,116210.0,116200.0,0.02312]
[1758155184921,0.92407038,116210.0,116190.0,0.32112939]
[1758155185123,1.10103038,116200.0,116190.0,0.34424939]
[1758155186526,1.10103038,116200.0,116190.0,0.05394901]
[1758155186920,1.10103038,116200.0,116190.0,0.34424939]
[1758155187930,1.10103038,116200.0,116190.0,0.05394901]
[1758155188526,1.16976019,116200.0,116190.0,0.05394901]
[1758155188726,1.16976019,116200.0,116190.0,0.34424939]
[1758155189525,0.85652981,116200.0,116190.0,1.33137857]
[1758155189926,0.06872981,116200.0,116190.0,1.33137857]
[1758155190125,0.0001,116210.0,116200.0,0.1204914]
[1758155190328,1.81282,116220.0,116210.0,0.03447]
[1758155190526,2.60052,116220.0,116210.0,0.68557038]
[1758155190829,0.02186,116230.0,116220.0,0.03447]
[1758155191024,0.80952,116230.0,116220.0,0.61507076]
[1758155191226,0.80952,116230.0,116220.0,0.97587076]
[1758155191731,0.02176,116230.0,116220.0,0.97587076]
[1758155191931,0.80952,116230.0,116220.0,0.97587076]
[1758155192122,0.80952,116230.0,116220.0,0.97687076]
[1758155192725,0.02176,116230.0,116220.0,0.97687076]
[1758155192924,0.80952,116230.0,116220.0,0.97687076]
[1758155197036,0.09099268,116240.0,116230.0,0.03447]
[1758155197237,0.87867268,116240.0,116230.0,0.61507076]
[1758155198032,0.87867268,116240.0,116230.0,0.32477038]
[1758155198634,0.87867268,116240.0,116230.0,0.61507076]
[1758155199038,0.87867268,116240.0,116230.0,0.32477038]
[1758155199729,0.87867268,116240.0,116230.0,0.03447]
[1758155199934,0.87867268,116240.0,116230.0,0.32477038]
[1758155200635,1.16897306,116240.0,116230.0,0.03447]
[1758155200836,1.82007344,116240.0,116230.0,0.32477038]
[1758155201033,1.82007344,116240.0,116230.0,0.03447]
[1758155201234,2.07007344,116240.0,116230.0,0.03447]
[1758155201437,2.07007344,116240.0,116230.0,0.32477038]
[1758155201737,2.07007344,116240.0,116230.0,0.03447]
[1758155201926,2.07923344,116240.0,116220.0,0.01315]
[1758155202124,0.31206038,116230.0,116220.0,0.32487038]
[1758155204348,0.31206038,116230.0,116220.0,0.32587038]
[1758155204639,0.31206038,116230.0,116220.0,0.03557]
[1758155204940,0.92286038,116230.0,116220.0,0.03557]
[1758155206341,0.92286038,116230.0,116220.0,0.32587038]
[1758155206527,0.56206038,116230.0,116220.0,0.32587038]
[1758155207538,0.56206038,116230.0,116220.0,0.03557]
[1758155207839,0.80928,116230.0,116220.0,0.03557]
[1758155209039,0.02176,116230.0,116220.0,0.03557]
[1758155209240,0.80924,116230.0,116220.0,0.03557]
[1758155212438,0.31210224,116230.0,116220.0,0.03557]
[1758155212640,1.09954224,116230.0,116220.0,0.03557]
[1758155213638,0.8092,116230.0,116220.0,0.03557]
[1758155220636,0.06933268,116240.0,116230.0,0.01375]
[1758155220834,0.06913268,116240.0,116230.0,0.32582224]
[1758155221137,0.40220486,116250.0,116240.0,0.03538]
[1758155221340,0.80748486,116250.0,116240.0,0.32582224]
[1758155221537,0.82856486,116250.0,116240.0,0.32582224]
[1758155221931,0.82856486,116250.0,116240.0,0.68662224]
[1758155222533,0.07242686,116250.0,116240.0,1.31295628]
[1758155222740,0.85974686,116250.0,116240.0,1.09995132]
[1758155222942,0.88082686,116250.0,116240.0,1.01395952]
[1758155223344,0.88082686,116250.0,116240.0,0.93662224]
[1758155224748,0.85974686,116250.0,116240.0,1.02261404]
[1758155224948,0.85974686,116250.0,116240.0,0.7322718]
[1758155225149,0.85974686,116250.0,116240.0,1.02261404]
[1758155226652,0.85966686,116250.0,116240.0,1.02261404]
[1758155226954,0.002,116250.0,116240.0,1.7577574]
[1758155227148,0.002,116250.0,116240.0,1.76613885]
[1758155227343,0.002,116250.0,116240.0,1.41613885]
[1758155227548,0.7873,116260.0,116250.0,0.1213644]
[1758155227747,0.06808697,116270.0,116260.0,0.085977]
[1758155227954,0.85514697,116270.0,116260.0,0.77259924]
[1758155228255,0.06798697,116270.0,116260.0,0.77259924]
[1758155228458,0.78716,116270.0,116260.0,0.77259924]
[1758155228850,1.81282,116280.0,116260.0,0.77259924]
[1758155229051,1.8339,116280.0,116270.0,0.03538]
[1758155229253,2.62096,116280.0,116270.0,0.32582224]
[1758155230661,2.62970484,116280.0,116270.0,0.32582224]
[1758155230855,2.63370484,116280.0,116270.0,0.32582224]
[1758155231357,2.70115646,116280.0,116270.0,0.32582224]
[1758155235159,2.69241162,116280.0,116270.0,0.77259184]
[1758155235562,1.90525162,116280.0,116270.0,0.77259184]
[1758155235858,0.79092,116280.0,116270.0,1.31293408]
[1758155236060,0.004,116280.0,116270.0,1.31293408]
[1758155237156,0.004,116280.0,116270.0,1.02259184]
[1758155237860,0.0001,116290.0,116280.0,0.0859622]
[1758155238054,0.78688,116290.0,116280.0,1.06292668]
[1758155238253,0.78688,116290.0,116280.0,0.97696448]
[1758155238453,0.78688,116290.0,116280.0,0.68662224]
[1758155238760,0.78688,116290.0,116280.0,0.77258444]
[1758155239265,0.80796,116290.0,116280.0,0.39628]
[1758155239559,0.09732999,116300.0,116290.0,0.03538]
[1758155239771,0.88406999,116300.0,116290.0,0.32582224]
[1758155240463,0.88406999,116300.0,116290.0,0.03548]
[1758155241366,0.88706999,116300.0,116290.0,0.03548]
[1758155241563,0.07045365,116300.0,116290.0,0.32582224]
[1758155241760,0.85721365,116300.0,116290.0,0.32582224]
[1758155241958,0.87829365,116300.0,116290.0,0.32582224]
[1758155243963,0.85717365,116300.0,116290.0,0.77257704]
[1758155244166,0.85717365,116300.0,116290.0,0.68662224]
[1758155244369,0.85717365,116300.0,116290.0,0.77257704]
[1758155245960,0.87825365,116300.0,116290.0,0.68662224]
[1758155248565,0.07045365,116300.0,116290.0,0.77257704]
[1758155248769,0.85705365,116300.0,116290.0,0.68662224]
[1758155249274,0.85705365,116300.0,116290.0,0.77257704]
[1758155250069,0.85705365,116300.0,116290.0,0.68662224]
[1758155250469,0.87878365,116300.0,116290.0,0.68662224]
[1758155250665,0.87878365,116300.0,116290.0,0.03548]
[1758155253064,0.87878365,116300.0,116290.0,0.32582224]
[1758155254779,0.85705365,116300.0,116290.0,0.68662224]
[1758155254971,0.85697365,116300.0,116290.0,0.68662224]
[1758155255268,0.78948,116300.0,116290.0,1.02257704]
[1758155255474,0.78948,116300.0,116290.0,0.93662224]
[1758155255677,0.81121,116300.0,116290.0,0.93662224]
[1758155256170,0.81121,116300.0,116290.0,0.68662224]
[1758155256372,0.81121,116300.0,116290.0,0.77257704]
[1758155256567,0.78948,116300.0,116290.0,1.02257704]
[1758155257567,0.003,116300.0,116290.0,1.02257704]
[1758155258175,0.80827,116310.0,116300.0,0.03405]
[1758155258368,0.80817,116310.0,116300.0,0.68529224]
[1758155259873,2.5417996,116320.0,116300.0,0.68529224]
[1758155260175,2.27318736,116320.0,116310.0,0.32439224]
[1758155260375,2.69864736,116320.0,116310.0,0.32449224]
[1758155260972,2.69864736,116320.0,116310.0,0.03415]
[1758155261476,2.69964736,116320.0,116310.0,0.03415]
[1758155262168,2.69964736,116320.0,116310.0,0.32449224]
[1758155262169,2.71252575,116320.0,116310.0,0.32449224]
[1758155262575,2.71252575,116320.0,116310.0,0.03415]
[1758155262775,2.71252575,116320.0,116310.0,0.32449224]
[1758155262970,2.71252575,116320.0,116310.0,0.03415]
[1758155263278,3.00286799,116320.0,116310.0,0.03415]
[1758155263480,2.71252575,116320.0,116310.0,0.03415]
[1758155263978,3.07332575,116320.0,116310.0,0.03415]
[1758155264578,2.28700575,116320.0,116310.0,0.32449224]
[1758155264778,3.05155575,116320.0,116310.0,0.32449224]
[1758155264980,3.06021348,116320.0,116310.0,0.32449224]
[1758155265181,3.08194348,116320.0,116310.0,0.03415]
[1758155265478,3.37228572,116320.0,116310.0,0.03415]
[1758155269387,3.63344572,116320.0,116310.0,0.0001]
[1758155269983,3.92313918,116320.0,116310.0,0.0001]
[1758155272482,4.21315703,116320.0,116310.0,0.0001]
[1758155272888,3.92313918,116320.0,116310.0,0.0001]
[1758155273381,3.34310348,116320.0,116310.0,0.0001]
[1758155273586,3.92313918,116320.0,116310.0,0.0001]
[1758155276081,3.92301918,116320.0,116310.0,0.0001]
[1758155276690,3.13685918,116320.0,116310.0,0.0001]
[1758155276886,3.92301918,116320.0,116310.0,0.0001]
[1758155278290,3.13685918,116320.0,116310.0,0.0001]
[1758155278490,3.92301918,116320.0,116310.0,0.0001]
[1758155282194,3.96303703,116320.0,116310.0,0.0001]
[1758155282397,0.02147,116290.0,116280.0,0.32538785]
[1758155282599,1.09764785,116290.0,116280.0,0.32538785]
[1758155284096,1.09764785,116290.0,116280.0,0.32738785]
[1758155284496,1.09764785,116290.0,116280.0,0.03737]
[1758155285004,1.46760785,116290.0,116280.0,0.002]
[1758155285204,1.46760785,116290.0,116280.0,0.02362]
[1758155285398,1.45844785,116290.0,116280.0,0.02362]
[1758155285702,1.45844785,116290.0,116280.0,0.03759]
[1758155296002,1.16843,116290.0,116280.0,0.03759]
[1758155296205,1.45844785,116290.0,116280.0,0.02362]
[1758155296407,1.46760785,116290.0,116280.0,0.002]
[1758155297708,1.46760785,116290.0,116280.0,0.02362]
[1758155298604,1.46760785,116290.0,116280.0,0.002]
[1758155300313,1.46760785,116290.0,116280.0,0.02362]
[1758155301110,0.68144785,116290.0,116280.0,0.02362]
[1758155301310,1.46764785,116290.0,116280.0,0.02362]
[1758155302318,1.16847,116290.0,116280.0,0.03759]
[1758155302518,1.45848785,116290.0,116280.0,0.03759]
[1758155302914,1.46764785,116290.0,116280.0,0.02362]
[1758155303510,1.17763,116290.0,116280.0,0.02362]
[1758155304018,1.46764785,116290.0,116280.0,0.02362]
[1758155304919,1.17763,116290.0,116280.0,0.02362]
[1758155305106,1.45848785,116290.0,116280.0,0.03759]
[1758155308709,1.45848785,116290.0,116280.0,0.02362]
[1758155308913,1.46764785,116290.0,116280.0,0.02362]
[1758155309721,1.17763,116290.0,116280.0,0.02362]
[1758155309921,1.46764785,116290.0,116280.0,0.02362]
[1758155311517,1.46764785,116290.0,116280.0,0.002]
[1758155312524,1.46764785,116290.0,116280.0,0.02351]
[1758155313524,1.17763,116290.0,116280.0,0.02351]
[1758155313725,1.46764785,116290.0,116280.0,0.02351]
[1758155313912,1.46764785,116290.0,116280.0,0.002]
[1758155314729,1.7576657,116290.0,116280.0,0.002]
[1758155315523,0.03421,116280.0,116270.0,0.0001]
[1758155315723,0.02695,116270.0,116260.0,0.01725109]
[1758155316028,1.7539457,116270.0,116260.0,0.01715109]
[1758155316827,1.77528226,116270.0,116260.0,0.01715109]
[1758155317229,1.7539457,116270.0,116260.0,0.01715109]
[1758155317429,1.7539457,116270.0,116260.0,0.01915109]
[1758155318435,1.82130671,116270.0,116260.0,0.01915109]
[1758155320537,3.63330671,116270.0,116260.0,0.01915109]
[1758155320740,3.63330671,116270.0,116260.0,0.002]
[1758155321831,3.05327101,116270.0,116260.0,0.002]
[1758155322035,3.63330671,116270.0,116260.0,0.002]
[1758155322240,2.84714671,116270.0,116260.0,0.002]
[1758155322442,3.63362671,116270.0,116260.0,0.002]
[1758155322643,5.13362671,116270.0,116260.0,0.002]
[1758155323237,4.34714671,116270.0,116260.0,0.02351]
[1758155323437,5.13366671,116270.0,116260.0,0.02351]
[1758155326644,4.84364886,116270.0,116260.0,0.02351]
[1758155327646,5.13366671,116270.0,116260.0,0.02351]
[1758155331651,4.34714671,116270.0,116260.0,0.02351]
[1758155331850,4.84361258,116270.0,116260.0,0.02351]
[1758155333251,4.84361258,116270.0,116260.0,0.002]
[1758155333644,3.36489576,116270.0,116260.0,0.002]
[1758155334247,4.86489576,116270.0,116260.0,0.002]
[1758155336347,4.86486796,116270.0,116260.0,0.002]
[1758155340347,5.11486796,116270.0,116260.0,0.002]
[1758155340547,5.11486796,116270.0,116250.0,0.0001]
[1758155340754,0.67287157,116260.0,116250.0,0.0001]
[1758155340954,0.03342,116250.0,116240.0,0.0001]
[1758155341144,1.76098314,116250.0,116230.0,0.01334]
[1758155341351,1.16907,116250.0,116240.0,0.03603]
[1758155341550,1.16897,116250.0,116240.0,0.03603]
[1758155342354,1.45919157,116250.0,116240.0,0.03603]
[1758155342555,1.4677566,116250.0,116240.0,0.03603]
[1758155343353,1.4687566,116250.0,116240.0,0.03603]
[1758155344259,1.4687566,116250.0,116230.0,0.01334]
[1758155344558,0.31207157,116240.0,116230.0,0.03613]
[1758155344753,0.31207157,116240.0,116230.0,0.03603]
[1758155344754,0.67287157,116240.0,116230.0,0.03603]
[1758155344945,0.67287157,116240.0,116230.0,0.25]
[1758155345150,0.67287157,116240.0,116230.0,0.27279]
[1758155347361,0.67287157,116240.0,116220.0,0.01334]
[1758155347560,1.09839157,116230.0,116220.0,0.03613]
[1758155347858,1.09839157,116230.0,116220.0,0.03603]
[1758155348458,1.16897,116230.0,116220.0,0.03603]
[1758155348658,1.45919157,116230.0,116220.0,0.03603]
[1758155348859,1.45919157,116230.0,116220.0,0.03803]
[1758155350262,1.52806187,116230.0,116220.0,0.03803]
[1758155353956,0.8770403,116230.0,116220.0,0.28803]
[1758155354158,0.8568703,116230.0,116220.0,0.57825157]
[1758155354658,0.8568303,116230.0,116220.0,1.22927314]
[1758155354860,0.78796,116230.0,116220.0,1.22927314]
[1758155355062,0.78796,116230.0,116220.0,0.93905157]
[1758155355568,0.78796,116230.0,116220.0,0.64883]
[1758155355766,0.78796,116230.0,116220.0,0.93905157]
[1758155355965,0.80981,116230.0,116220.0,0.64883]
[1758155356263,0.80981,116230.0,116220.0,0.93905157]
[1758155356967,0.80981,116230.0,116220.0,0.64883]
[1758155357667,0.80981,116230.0,116220.0,0.93905157]
[1758155358268,0.78796,116230.0,116220.0,0.93905157]
[1758155359269,0.31227157,116240.0,116230.0,0.03603]
[1758155359467,0.81033,116240.0,116230.0,0.03603]
[1758155361674,0.39141503,116250.0,116240.0,0.03603]
[1758155361876,0.81881503,116250.0,116240.0,0.32625157]
[1758155362170,0.3609,116260.0,116250.0,0.03603]
[1758155362369,1.14916,116260.0,116250.0,0.32625157]
[1758155362880,0.38265,116260.0,116250.0,0.32625157]
[1758155363068,1.17101,116260.0,116250.0,0.32625157]
[1758155363577,1.17953947,116260.0,116250.0,0.32625157]
[1758155363769,0.38265,116260.0,116250.0,0.32625157]
[1758155363974,1.17085,116260.0,116250.0,0.32625157]
[1758155364474,1.17089,116260.0,116250.0,0.32625157]
[1758155364971,0.81009,116260.0,116250.0,0.32625157]
[1758155365177,0.81009,116260.0,116250.0,0.68705157]
[1758155366273,0.78824,116260.0,116250.0,0.68705157]
[1758155366474,1.90131101,116270.0,116260.0,0.03603]
[1758155366674,1.90121101,116270.0,116260.0,0.03603]
[1758155366874,2.68921101,116270.0,116260.0,0.03603]
[1758155367470,2.68925101,116270.0,116260.0,0.03603]
[1758155367666,2.69866883,116270.0,116260.0,0.03603]
[1758155367868,1.91062883,116270.0,116260.0,0.32625157]
[1758155368070,2.69858883,116270.0,116260.0,0.32625157]
[1758155368274,2.67673883,116270.0,116260.0,0.32625157]
[1758155368470,2.69858883,116270.0,116260.0,0.32625157]
[1758155368667,2.69017101,116270.0,116260.0,0.32625157]
[1758155369376,3.05097101,116270.0,116260.0,0.32625157]
[1758155369577,3.34961212,116270.0,116260.0,0.03603]
[1758155370077,3.34861212,116270.0,116260.0,0.03603]
[1758155371667,3.05839055,116270.0,116260.0,0.03603]
[1758155371870,3.34861212,116270.0,116260.0,0.03603]
[1758155372878,3.34861212,116270.0,116260.0,0.02279]
[1758155373081,3.36018212,116270.0,116260.0,0.02279]
[1758155375282,3.05839055,116270.0,116260.0,0.03579]
[1758155375472,3.34861212,116270.0,116260.0,0.03579]
[1758155378586,3.05839055,116270.0,116260.0,0.03579]
[1758155380579,3.34861212,116270.0,116260.0,0.03579]
[1758155383976,2.56065212,116270.0,116260.0,0.03579]
[1758155384185,3.34765212,116270.0,116260.0,0.03579]
[1758155388083,3.05743055,116270.0,116260.0,0.03579]
[1758155388281,3.34765212,116270.0,116260.0,0.03579]
[1758155391782,3.34765212,116270.0,116260.0,0.32594334]
[1758155391783,3.34758389,116270.0,116260.0,0.32594334]
[1758155393290,3.34758389,116270.0,116260.0,0.38766286]
[1758155395389,3.34758389,116270.0,116260.0,0.09750952]
[1758155395593,3.34758389,116270.0,116260.0,0.38766286]
[1758155396695,3.34758389,116270.0,116260.0,0.09750952]
[1758155396994,1.53558389,116270.0,116260.0,0.38766286]
[1758155400196,1.53558389,116270.0,116260.0,0.09750952]
[1758155400396,1.53558389,116270.0,116260.0,0.38766286]
[1758155400592,1.53558389,116270.0,116260.0,0.09750952]
[1758155400797,1.53558389,116270.0,116260.0,0.38766286]
[1758155400990,1.24543055,116270.0,116260.0,0.38766286]
[1758155401194,1.53558389,116270.0,116260.0,0.38766286]
[1758155403406,0.45843055,116270.0,116260.0,0.6778162]
[1758155403702,0.85376101,116270.0,116260.0,1.15625002]
[1758155403909,0.7864,116270.0,116260.0,1.30423396]
[1758155404907,0.85484085,116270.0,116260.0,1.30423396]
[1758155405411,0.87667085,116270.0,116260.0,1.30623396]
[1758155406798,0.06844085,116270.0,116260.0,1.30623396]
[1758155407003,0.78712,116270.0,116260.0,1.30623396]
[1758155407405,0.78712,116270.0,116260.0,0.72592728]
[1758155407600,0.80895,116270.0,116260.0,0.72592728]
[1758155407806,0.80895,116270.0,116260.0,1.30623396]
[1758155409313,0.8780167,116270.0,116260.0,1.30623396]
[1758155409815,0.8780167,116270.0,116260.0,0.72592728]
[1758155410114,0.8780167,116270.0,116260.0,1.30623396]
[1758155411601,0.8561867,116270.0,116260.0,1.30623396]
[1758155412212,0.8561867,116270.0,116260.0,1.22889668]
[1758155412401,0.8780167,116270.0,116260.0,1.22889668]
[1758155413216,0.8784167,116270.0,116260.0,1.22889668]
[1758155413413,0.8565867,116270.0,116260.0,1.22889668]
[1758155414210,0.0001,116280.0,116270.0,0.03494]
[1758155414402,1.83417,116290.0,116280.0,0.03494]
[1758155414606,1.83407,116290.0,116280.0,1.03786088]
[1758155414806,2.62163,116290.0,116280.0,1.03786088]
[1758155415113,1.81224,116290.0,116280.0,1.03786088]
[1758155415315,2.5998,116290.0,116280.0,1.03786088]
[1758155415503,0.03021515,116300.0,116290.0,0.01363]
[1758155415710,0.09208219,116300.0,116290.0,0.32509334]
[1758155415918,0.80947,116300.0,116290.0,0.32509334]
[1758155416206,0.02183,116300.0,116290.0,0.61524668]
[1758155416414,0.80947,116300.0,116290.0,0.61524668]
[1758155417111,0.02183,116300.0,116290.0,0.61524668]
[1758155417308,0.78748,116300.0,116290.0,0.61524668]
[1758155417508,0.80931,116300.0,116290.0,0.97604668]
[1758155417710,0.80931,116300.0,116290.0,1.03786088]
[1758155418109,0.80931,116300.0,116290.0,0.97604668]
[1758155418609,0.78748,116300.0,116290.0,1.03786088]
[1758155418806,0.00865134,116310.0,116290.0,1.03786088]
[1758155419116,0.02183,116310.0,116300.0,0.61524668]
[1758155419318,0.80951,116310.0,116300.0,0.61524668]
[1758155419816,0.81794328,116310.0,116300.0,0.61524668]
[1758155420015,0.81790328,116310.0,116300.0,0.61524668]
[1758155420416,0.88709062,116310.0,116300.0,0.61524668]
[1758155420817,0.88709062,116310.0,116300.0,0.03494]
[1758155421019,0.88709062,116310.0,116300.0,0.61524668]
[1758155422912,0.88697062,116310.0,116300.0,0.61524668]
[1758155423614,0.09945062,116310.0,116300.0,0.61524668]
[1758155423809,0.87845734,116310.0,116300.0,0.61524668]
[1758155424721,0.87845734,116310.0,116300.0,0.03494]
[1758155424722,0.88697029,116310.0,116300.0,0.03494]
[1758155425019,0.88697029,116310.0,116300.0,0.61524668]
[1758155425619,0.38104637,116320.0,116310.0,0.03494]
[1758155425620,0.40287637,116320.0,116310.0,0.03494]
[1758155425817,1.19027637,116320.0,116310.0,0.61524668]
[1758155426624,1.19027637,116320.0,116310.0,0.32509334]
[1758155427522,1.1987215,116320.0,116310.0,0.32509334]
[1758155427720,1.1987215,116320.0,116310.0,0.32709334]
[1758155428225,0.4113215,116320.0,116310.0,0.32709334]
[1758155428525,1.1984415,116320.0,116310.0,0.61724668]
[1758155429030,0.8158115,116320.0,116310.0,0.61724668]
[1758155429429,0.88368675,116320.0,116310.0,0.03694]
[1758155429726,0.82919637,116320.0,116310.0,0.61724668]
[1758155433125,0.82919637,116320.0,116310.0,0.03694]
[1758155433321,0.82919637,116320.0,116310.0,0.61724668]
[1758155434124,0.82919637,116320.0,116310.0,0.03694]
[1758155434328,0.89793089,116320.0,116310.0,0.61724668]
[1758155434520,0.87610089,116320.0,116310.0,0.61724668]
[1758155434824,0.36966889,116330.0,116310.0,0.95318608]
[1758155435018,0.39238889,116330.0,116320.0,0.61541668]
[1758155435219,1.17880889,116330.0,116320.0,0.61541668]
[1758155435420,0.38362,116340.0,116330.0,0.03511]
[1758155435620,1.17016,116340.0,116330.0,0.32526334]